lending/lending_fUSD_20251022
["ID","MTS","AMOUNT","RATE_DAILY","PERIOD"]
[392011701,1761093668675,-150.0,0.00014899,2]
[392011702,1761093668697,-45.0,0.00014899,2]
[392011703,1761093672772,-185.50132868,0.00014899,2]
[392011704,1761093673651,500.0,0.00030137,120]
[392011709,1761093834825,-311.09266022,0.000147,2]
[392011712,1761093863429,-89.46233978,0.000147,2]
[392011713,1761093863455,-69.49867132,0.00014899,2]
[392011714,1761093863480,-170.53157207,0.00014899,2]
[392011715,1761093866293,-250.62429644,0.00014899,2]
[392011716,1761093869366,-158.38295035,0.00014899,2]
[392011717,1761093871943,-250.29,0.00014899,2]
[392011719,1761093874646,-250.0,0.00014899,2]
[392011720,1761093893338,-120.17118114,0.00014899,2]
[392011721,1761093893361,-67.10361785,0.00014899,2]
[392011722,1761093896605,-82.89638215,0.00014899,2]
[392011723,1761093896627,-105.1308491,0.000149,2]
[392011725,1761093899445,-89.8691509,0.000149,2]
[392011726,1761093899470,-190.85460037,0.000149,2]
[392011727,1761093903676,-300.0,0.00014899,2]
[392011728,1761093903699,-110.09913291,0.00014899,2]
[392011729,1761093906244,-219.67503196,0.00014899,2]
[392011730,1761093923414,-226.41022366,0.00014899,2]
[392011733,1761093967856,-1235.89,0.0001485,2]
[392011734,1761093971179,-186.59130588,0.0001485,2]
[392011735,1761093973153,327.22,0.00013699,2]
[392011736,1761093974239,-291.11182637,0.0001485,2]
[392011737,1761093974271,160.0,0.000301,120]
[392011738,1761093980514,-336.34267382,0.0001485,2]
[392011739,1761093982574,-147.10310969,0.0001485,2]
[392011740,1761093982597,-100.51192908,0.00014899,2]
[392011741,1761093985112,161.0,0.000301,120]
[392011742,1761093985886,-191.14,0.00014899,2]
[392011743,1761093988675,-183.98771662,0.00014899,2]
[392011744,1761093990962,-168.17596577,0.00014899,2]
[392011745,1761093990985,-76.57154546,0.00014899,2]
[392011746,1761093995194,-73.42845454,0.00014899,2]
[392011747,1761093995218,-376.38543886,0.000149,2]
[392011748,1761093998130,-166.66,0.000149,2]
[392011750,1761094002875,-155.70831099,0.000149,2]
[392011751,1761094002901,-11.9336236,0.000149,2]
[392011754,1761094006684,-144.75542744,0.000149,2]
[392011755,1761094006707,-21.90457256,0.000149,2]
[392011756,1761094012092,-186.59130588,0.000149,2]
[392011758,1761094028082,-108.87330743,0.000149,2]
[392011759,1761094028111,-148.10182445,0.000149,2]
[392011760,1761094032384,-161.63263787,0.000149,2]
[392011761,1761094036674,-545.78975541,0.000149,2]
[392011762,1761094039672,-195.62116896,0.000149,2]
[392011763,1761094058807,-300.0,0.000149,2]
[392011764,1761094064908,-200.0,0.000149,2]
[392011765,1761094149353,-276.13964955,0.000149,2]
[392011767,1761094194431,-230.99035045,0.000149,2]
[392011768,1761094196080,-515.97359416,0.000149,2]
[392011770,1761094216711,1288.0,0.00027397,120]
[392011781,1761094231598,-1200.0,0.00014899,2]
[392011782,1761094231609,-300.0,0.00014899,2]
[392011783,1761094231619,-477.16198727,0.000149,2]
[392011784,1761094231628,-2716.09929659,0.000149,2]
[392011786,1761094231640,-298.86,0.000149,2]
[392011789,1761094231664,-1071.49293044,0.000149,2]
[392011790,1761094231675,-604.6,0.000149,2]
[392011791,1761094231703,-11625.83758056,0.000149,2]
[392011792,1761094231714,-156.68905099,0.000149,2]
[392011793,1761094231723,-277.69803761,0.000149,2]
[392011794,1761094231733,-500.0,0.00014973,2]
[392011795,1761094231741,-500.0,0.00014973,2]
[392011796,1761094231751,-500.0,0.00014973,2]
[392011797,1761094231761,-500.0,0.00014973,2]
[392011798,1761094231770,-500.0,0.00014973,2]
[392011799,1761094231779,-500.0,0.00014973,2]
[392011800,1761094231790,-500.0,0.00014973,2]
[392011801,1761094231799,-389.52,0.00014991,2]
[392011802,1761094231809,-151.0,0.00014991,2]
[392011803,1761094231819,-151.0,0.00014991,2]
[392011804,1761094231831,-151.0,0.00014991,2]
[392011805,1761094231842,-151.0,0.00014991,2]
[392011806,1761094231851,-151.0,0.00014991,2]
[392011807,1761094231860,-151.0,0.00014991,2]
[392011808,1761094231870,-151.0,0.00014991,2]
[392011809,1761094231880,-32.68524478,0.00014991,2]
[392011810,1761094231892,-118.31475522,0.00014991,2]
[392011811,1761094231902,-151.0,0.00014991,2]
[392011812,1761094231912,-151.0,0.00014991,2]
[392011813,1761094231921,-151.0,0.00014991,2]
[392011814,1761094231932,-151.0,0.00014991,2]
[392011815,1761094231941,-151.0,0.00014991,2]
[392011816,1761094231950,-151.0,0.00014991,2]
[392011817,1761094231959,-87.16920998,0.00014991,2]
[392011818,1761094231971,-63.83079002,0.00014991,2]
[392011820,1761094231980,-151.0,0.00014991,2]
[392011821,1761094231990,-151.0,0.00014991,2]
[392011822,1761094231999,-164.49996355,0.00014991,2]
[392011823,1761094232008,-151.0,0.00014997,2]
[392011825,1761094232018,-429.57465247,0.00014999,2]
[392011826,1761094232027,-187.298844,0.00014999,2]
[392011827,1761094232036,-376.9952039,0.00014999,2]
[392011828,1761094232046,-165.2047961,0.00014999,2]
[392011829,1761094232055,-151.09277885,0.00014999,2]
[392011833,1761094232064,-500.0,0.00014999,2]
[392011836,1761094232073,-500.0,0.00014999,2]
[392011838,1761094232082,-502.54409142,0.00014999,2]
[392011840,1761094232091,-850.92,0.00014999,2]
[392011841,1761094232100,-850.92,0.00014999,2]
[392011842,1761094232110,-850.92,0.00014999,2]
[392011844,1761094232119,-850.92,0.00014999,2]
[392011845,1761094232129,-850.92,0.00014999,2]
[392011846,1761094232156,-850.92,0.00014999,2]
[392011847,1761094232167,-850.92,0.00014999,2]
[392011848,1761094232179,-39297.28395495,0.00015,2]
[392011849,1761094232192,-33851.35057052,0.00015,2]
[392011850,1761094232214,-3060.85176549,0.00015,2]
[392011851,1761094232226,-474.654,0.00015,2]
[392011853,1761094237635,-38400.000001,0.00015,2]
[392011854,1761094237647,-135584.21181166,0.00015,2]
[392011855,1761094237659,-16104.0,0.00015,2]
[392011856,1761094237670,-10290.0,0.00015,2]
[392011857,1761094237680,-42681.11586,0.00015,2]
[392011858,1761094237694,-95343.02107108,0.00015,2]
[392011859,1761094237712,-7014.72784999,0.00015,2]
[392011860,1761094237723,-435.68171857,0.00015,2]
[392011861,1761094237733,-6591.7935744,0.00015,2]
[392011862,1761094237744,-1012.40173172,0.00015,2]
[392011863,1761094237755,-1238.56943984,0.00015,2]
[392011864,1761094237774,-450.58499,0.00015,2]
[392011865,1761094237795,-326.20834752,0.00015,2]
[392011887,1761094239688,-9040.51948404,0.00015,2]
[392011890,1761094239701,-5799.5,0.00015,2]
[392011895,1761094239743,-233210.54783092,0.00015,2]
[392011907,1761094239854,-295.3352768,0.00015,2]
[392011909,1761094239869,-725.14125703,0.00015,2]
[392011911,1761094239882,-271.254405,0.00015,2]
[392011947,1761094240689,-1.6e-07,0.00015,2]
[392011948,1761094240702,-1639.53951054,0.00015,2]
[392011949,1761094240723,-252160.28889746,0.00015,2]
[392011956,1761094242659,-269.71945,0.00015,2]
[392011959,1761094242818,-700669.47230462,0.00015,2]
[392011960,1761094242926,-600.35115646,0.00015,2]
[392011961,1761094242939,-1081.0,0.00015,2]
[392011962,1761094242950,-52929.05965486,0.00015,2]
[392011980,1761094245860,-2123.32967816,0.00015,2]
[392011981,1761094245872,-301.58749307,0.00015,2]
[392011982,1761094245914,-767.52247451,0.00015,2]
[392012013,1761094246663,-397.61865093,0.00015,2]
[392012014,1761094329867,-183.98771662,0.000149,2]
[392012015,1761094329890,-18.67722352,0.00014949,2]
[392012016,1761094333098,-231.32277648,0.00014949,2]
[392012017,1761094333132,-500.0,0.00014973,2]
[392012018,1761094333155,-1000.0,0.00014999,2]
[392012019,1761094333176,-300.0,0.00014999,2]
[392012020,1761094333198,-49.5894453,0.00014999,2]
[392012021,1761094334662,-100.4105547,0.00014999,2]
[392012022,1761094334685,-327.76394562,0.00015,2]
[392012023,1761094336862,-379.71,0.00015,2]
[392012025,1761094396200,-168.55973547,0.00014653,2]
[392012026,1761094398978,-229.71800161,0.00014653,2]
[392012027,1761094401438,-202.6364642,0.00014653,2]
[392012030,1761094525017,1288.0,0.00027397,120]
[392012031,1761094666249,-549.48116592,0.000149,2]
[392012032,1761094668346,-271.02027824,0.000149,2]
[392012033,1761094669888,-266.03070622,0.000149,2]
[392012034,1761094671901,173.4,0.00028846,120]
[392012035,1761094673126,-6.77154962,0.000149,2]
[392012036,1761094673148,-243.22845038,0.000149,2]
[392012037,1761094676062,-347.31861138,0.000149,2]
[392012038,1761094678797,-179.50218907,0.000149,2]
[392012039,1761094696828,-593.38133634,0.000149,2]
[392012040,1761094700270,-154.25091183,0.000149,2]
[392012041,1761094703492,-300.0,0.000149,2]
[392012042,1761094706103,-300.0,0.000149,2]
[392012043,1761094708109,-220.94830104,0.000149,2]
[392012044,1761094710214,-465.31604071,0.000149,2]
[392012045,1761094726291,-188.40903968,0.000149,2]
[392012046,1761094727798,-294.88504383,0.000149,2]
[392012047,1761094729716,-268.57336808,0.000149,2]
[392012048,1761094732651,-37.90572318,0.000149,2]
[392012049,1761094732674,-287.42089539,0.0001495,2]
[392012050,1761094734907,-195.0,0.0001495,2]
[392012051,1761094738026,-184.37737769,0.0001495,2]
[392012052,1761094756286,-247.544006,0.00014961,2]
[392012053,1761094761429,-256.55285745,0.00014961,2]
[392012054,1761094763789,-7.44573315,0.00014961,2]
[392012055,1761094763810,-166.15026085,0.00014973,2]
[392012056,1761094766283,-251.53072,0.00014973,2]
[392012057,1761094771657,-82.31901915,0.00014973,2]
[392012058,1761094771679,-120.61772857,0.00014973,2]
[392012074,1761094786266,-298.63805799,0.00014973,2]
[392012096,1761094847643,1288.0,0.00027397,120]
[392012111,1761094872202,-358.62069102,0.00014714,2]
[392012112,1761094874611,-300.0,0.00014714,2]
[392012147,1761095007430,2042.4654749,0.00034267,120]
[392012148,1761095035455,769.38230425,0.00034267,120]
[392012155,1761095202345,-209.25953226,0.000149,2]
[392012156,1761095204356,-164.99583669,0.000149,2]
[392012157,1761095205922,-227.50934178,0.000149,2]
[392012158,1761095217658,-252.26975642,0.000149,2]
[392012159,1761095219137,-443.253949,0.000149,2]
[392012161,1761095234334,-166.66,0.000149,2]
[392012162,1761095235782,-202.71266976,0.000149,2]
[392012163,1761095237997,-230.45261523,0.000149,2]
[392012164,1761095241243,-162.85036894,0.000149,2]
[392012165,1761095277749,-178.92544117,0.00014818,2]
[392012166,1761095277769,-47.7919436,0.000149,2]
[392012167,1761095281433,-272.43071735,0.000149,2]
[392012168,1761095322605,-190.38501043,0.000149,2]
[392012169,1761095324824,-380.45953135,0.000149,2]
[392012170,1761095326938,-255.08908969,0.000149,2]
[392012171,1761095328971,-28.22675145,0.000149,2]
[392012172,1761095328997,-138.47579876,0.00014902,2]
[392012173,1761095331005,-152.75873485,0.00014902,2]
[392012174,1761095332577,-8.76546639,0.00014902,2]
[392012175,1761095332599,-172.5673503,0.00014905,2]
[392012176,1761095382142,-225.91537771,0.00014585,2]
[392012177,1761095383636,-159.37659103,0.00014585,2]
[392012178,1761095412146,-45.95790026,0.00014585,2]
[392012179,1761095412170,-22.4326497,0.00014905,2]
[392012180,1761095412195,-241.83904111,0.00014907,2]
[392012181,1761095415470,-109.01290673,0.00014907,2]
[392012182,1761095415508,-120.28925836,0.00014909,2]
[392012183,1761095418089,-208.70089154,0.00014909,2]
[392012184,1761095421176,-99.18435042,0.00014909,2]
[392012185,1761095421199,-195.0,0.00014918,2]
[392012186,1761095421220,-94.01713442,0.00014936,2]
[392012187,1761095422957,-201.51742942,0.00014936,2]
[392012188,1761095424970,-304.83077133,0.00014936,2]
[392012195,1761095431849,-407.12068079,0.00014936,2]
[392012196,1761095431861,-855.84467344,0.00014936,2]
[392012197,1761095431870,-300.0,0.00014972,2]
[392012198,1761095431880,-580.70580029,0.00014972,2]
[392012199,1761095431891,-619.29419971,0.00014972,2]
[392012200,1761095431901,-179.4243063,0.00014973,2]
[392012201,1761095431910,-500.0,0.00014973,2]
[392012202,1761095431919,-500.0,0.00014973,2]
[392012203,1761095431928,-500.0,0.00014973,2]
[392012204,1761095431938,-151.0,0.00014973,2]
[392012205,1761095431950,-228.74409618,0.00014973,2]
[392012206,1761095431960,-158.3,0.0001499,2]
[392012207,1761095431970,-151.0,0.00014997,2]
[392012208,1761095431979,-350.91420096,0.00014999,2]
[392012209,1761095431988,-1021.39320937,0.00014999,2]
[392012210,1761095431998,-500.0,0.00014999,2]
[392012211,1761095432007,-577.6522812,0.00014999,2]
[392012212,1761095432017,-172.83874023,0.00014999,2]
[392012213,1761095432029,-500.0,0.00014999,2]
[392012214,1761095432039,-289.92980903,0.00014999,2]
[392012215,1761095432048,-500.0,0.00014999,2]
[392012216,1761095432057,-175.03547244,0.00014999,2]
[392012217,1761095432065,-2683.77902681,0.00015,2]
[392012218,1761095432076,-3731.38260174,0.00015,2]
[392012220,1761095432087,-54151.4018983,0.00015,2]
[392012227,1761095432144,-8900.0,0.00015,2]
[392012229,1761095432155,-56537.97500724,0.00015,2]
[392012231,1761095432164,-2045.51288467,0.00015,2]
[392012233,1761095432173,-46479.90082467,0.00015,2]
[392012235,1761095432182,-152.0,0.00015,2]
[392012237,1761095432192,-152.0,0.00015,2]
[392012239,1761095432201,-233.29865209,0.00015,2]
[392012241,1761095432210,-160.0,0.00015,2]
[392012243,1761095432219,-594.56196,0.0001502,2]
[392012245,1761095432228,-594.56197,0.0001504,2]
[392012247,1761095432237,-594.56197,0.0001506,2]
[392012249,1761095432247,-594.56196,0.0001507,2]
[392012251,1761095432256,-594.56197,0.0001509,2]
[392012253,1761095432265,-594.56197,0.0001511,2]
[392012255,1761095432275,-154.78,0.00015149,2]
[392012257,1761095432284,-166.66,0.00015179,2]
[392012259,1761095432293,-154.78,0.0001569,2]
[392012261,1761095432303,-166.66,0.00015739,2]
[392012263,1761095432312,-1450.31881951,0.00016044,2]
[392012265,1761095432321,-150.0,0.00016044,2]
[392012266,1761095432330,-166.66,0.0001607,2]
[392012267,1761095432340,-154.78,0.00016231,2]
[392012268,1761095432349,-250.0,0.00016388,7]
[392012269,1761095432358,-195.0,0.0001639,2]
[392012270,1761095432367,-250.0,0.0001639,2]
[392012271,1761095432377,-196.09600628,0.0001639,2]
[392012272,1761095432386,-2500.0,0.0001639,2]
[392012273,1761095432396,-195.0,0.0001639,2]
[392012274,1761095432405,-250.0,0.0001639,2]
[392012275,1761095432415,-2500.0,0.0001639,2]
[392012276,1761095432424,-1695.4663996,0.0001639,2]
[392012277,1761095432434,-300.0,0.0001639,2]
[392012278,1761095432443,-311.61,0.0001639,2]
[392012279,1761095432453,-195.0,0.0001639,2]
[392012280,1761095432462,-300.0,0.0001639,2]
[392012281,1761095432472,-300.0,0.00016395,2]
[392012282,1761095432481,-250.0,0.00016395,2]
[392012283,1761095432491,-166.66,0.00016401,2]
[392012284,1761095432500,-500.0,0.00016438,2]
[392012285,1761095432510,-500.0,0.00016438,2]
[392012286,1761095432519,-500.0,0.00016438,2]
[392012287,1761095432528,-500.0,0.00016438,2]
[392012288,1761095432538,-500.0,0.00016438,2]
[392012289,1761095432547,-480.61452006,0.00016438,2]
[392012290,1761095432557,-500.0,0.00016438,2]
[392012291,1761095432566,-500.0,0.00016438,2]
[392012292,1761095432575,-500.0,0.00016438,2]
[392012293,1761095432585,-457.0,0.00016469,2]
[392012294,1761095432595,-311.61,0.00016664,2]
[392012295,1761095432604,-194.24,0.00016712,2]
[392012296,1761095432614,-166.66,0.00016733,2]
[392012297,1761095432624,-154.78,0.00016772,2]
[392012298,1761095432633,-311.61,0.00016938,2]
[392012299,1761095432642,-166.66,0.00017064,2]
[392012300,1761095432651,-311.61,0.00017212,2]
[392012301,1761095432661,-154.78,0.00017313,2]
[392012302,1761095432670,-166.66,0.00017395,2]
[392012303,1761095432680,-311.64,0.00017486,2]
[392012304,1761095432689,-166.66,0.00017685,2]
[392012305,1761095432698,-154.78,0.00017854,2]
[392012306,1761095432707,-476.03091061,0.00017945,2]
[392012307,1761095432717,-1000.0,0.00018123,2]
[392012308,1761095432726,-154.78,0.00018395,2]
[392012309,1761095432735,-154.78,0.00018936,2]
[392012310,1761095432744,-30677.42407821,0.00019,2]
[392012311,1761095432756,-84010.57202909,0.00019,2]
[392012312,1761095432766,-314.91733051,0.00019031,2]
[392012313,1761095432776,-15599.30061535,0.00019131,2]
[392012314,1761095432786,-150.0,0.00019162,2]
[392012315,1761095432795,-151.0,0.00019218,2]
[392012316,1761095432804,-2751.0,0.00019221,2]
[392012317,1761095432814,-602.74,0.0001923,2]
[392012318,1761095432823,-31832.48740128,0.00019231,2]
[392012319,1761095432835,-25.95259872,0.00019231,2]
[392012320,1761095432844,-173.4,0.00019231,2]
[392012321,1761095432853,-154.78,0.00019477,2]
[392012322,1761095432863,-151.33,0.00019592,2]
[392012323,1761095432872,-154.78,0.00020018,2]
[392012324,1761095432882,-327.22,0.00020187,2]
[392012325,1761095432891,-1000.0,0.00020388,2]
[392012326,1761095432900,-154.78,0.00020559,2]
[392012327,1761095432910,-14882.30330473,0.00020647,2]
[392012328,1761095432938,-500.35762073,0.00020647,2]
[392012329,1761095432951,-216.63968985,0.00020647,2]
[392012330,1761095432960,-158.33186285,0.00020759,2]
[392012331,1761095432970,-935.30738652,0.00020904,2]
[392012333,1761095437745,-693.51996325,0.0001639,2]
[392012334,1761095437803,-207.48003675,0.0001639,2]
[392012335,1761095437812,-901.0,0.00016445,2]
[392012336,1761095437821,-901.0,0.000165,2]
[392012337,1761095437830,-901.0,0.00016554,2]
[392012338,1761095437839,-901.0,0.00016609,2]
[392012339,1761095437848,-901.0,0.00016664,2]
[392012340,1761095437857,-280.86508197,0.00020759,2]
[392012341,1761095437866,-917.11261348,0.00020904,2]
[392012342,1761095437875,-1475.83,0.00020904,2]
[392012343,1761095437885,-314.91733049,0.00020995,2]
[392012344,1761095437894,-15599.30061531,0.00022163,2]
[392012345,1761095437903,-158.33186285,0.00022402,2]
[392012346,1761095437912,-151.33,0.00022531,2]
[392012347,1761095437921,-1000.0,0.00022653,2]
[392012348,1761095437929,-314.91733049,0.00022958,2]
[392012349,1761095437939,-2587.0,0.0002298,2]
[392012350,1761095437955,-300.961,0.0002298,2]
[392012351,1761095437965,-2820.418,0.0002298,2]
[392012352,1761095437974,-547.23,0.00023151,2]
[392012354,1761095437983,-15599.30061531,0.00023679,2]
[392012356,1761095437994,-368.4,0.00023836,2]
[392012358,1761095438003,-1200.52,0.00023973,2]
[392012359,1761095438012,-414.05,0.00023973,2]
[392012360,1761095438021,-547.23,0.00023973,2]
[392012361,1761095438032,-1200.52,0.00023973,2]
[392012362,1761095438041,-530.29,0.00023973,2]
[392012363,1761095438050,-414.05,0.00023973,2]
[392012364,1761095438060,-9184.93161773,0.00024,14]
[392012365,1761095438069,-547.23,0.00024,2]
[392012366,1761095438078,-1200.52,0.00024,2]
[392012367,1761095438087,-613.96,0.00024,2]
[392012369,1761095438096,-414.05,0.00024,2]
[392012371,1761095438105,-586.56,0.00024,2]
[392012372,1761095438115,-414.05,0.00024,2]
[392012373,1761095438124,-1192.6,0.00024,2]
[392012374,1761095438133,-173.4,0.00024039,2]
[392012375,1761095438143,-158.33186285,0.00024044,2]
[392012377,1761095438153,-1000.0,0.00024658,2]
[392012379,1761095438162,-151.0,0.00024797,7]
[392012381,1761095438171,-25650.0649078,0.000248,2]
[392012383,1761095438207,-901.0,0.00016719,2]
[392012384,1761095438217,-5352.03136083,0.000248,2]
[392012385,1761095438229,-3139.47638304,0.000248,2]
[392012386,1761095439828,-532.71060032,0.00016774,2]
[392012387,1761095439849,-340.06083058,0.00016774,2]
[392012388,1761095439863,-28.2285691,0.00016774,2]
[392012389,1761095439872,-901.0,0.00016828,2]
[392012390,1761095439881,-901.0,0.00016883,2]
[392012391,1761095439891,-901.0,0.00016938,2]
[392012392,1761095439900,-901.0,0.00016993,2]
[392012393,1761095439909,-901.0,0.00017048,2]
[392012394,1761095439919,-248.34859264,0.00017102,2]
[392012395,1761095440600,-1.6e-07,0.00016737,2]
[392012396,1761095440630,-651.0,0.00016737,2]
[392012397,1761095440642,-773.99999984,0.00016737,2]
[392012398,1761095440651,-489.21533965,0.00017102,2]
[392012409,1761095443030,-150.0,0.0001639,2]
[392012410,1761095443040,-163.43606771,0.00017102,2]
[392012411,1761095443049,-901.0,0.00017157,2]
[392012412,1761095443058,-901.0,0.00017212,2]
[392012413,1761095443067,-901.0,0.00017267,2]
[392012414,1761095443076,-901.0,0.00017322,2]
[392012415,1761095443086,-901.0,0.00017376,2]
[392012416,1761095443095,-142.52958685,0.00017431,2]
[392012417,1761095443106,-758.47041315,0.00017431,2]
[392012418,1761095443115,-901.0,0.00017486,2]
[392012419,1761095443125,-901.0,0.00017541,2]
[392012420,1761095443134,-901.0,0.00017595,2]
[392012427,1761095443327,-59.63712142,0.0001765,2]
[392012428,1761095443346,-150.0,0.00016445,2]
[392012429,1761095443355,-862.36287858,0.0001765,2]
[392012430,1761095443364,-346.90713142,0.00022983,2]
[392012431,1761095443376,-2201.09286858,0.00022983,2]
[392012432,1761095443385,-5407.15582848,0.000248,2]
[392012433,1761095443506,-43637.75440866,0.000248,2]
[392012434,1761095445959,-150.0,0.000165,2]
[392012435,1761095445969,-150.0,0.00016554,2]
[392012436,1761095445978,-250.59891275,0.00016609,2]
[392012437,1761095445988,-1256.55908319,0.000248,2]
[392012438,1761095445999,-21651.0,0.000248,2]
[392012439,1761095446010,-500.4799978,0.000248,2]
[392012440,1761095446039,-306.75192628,0.000248,2]
[392012441,1761095446206,-5605.67862227,0.000248,2]
[392012442,1761095446345,-3607.85660827,0.000248,2]
[392012445,1761095449034,3000.0,0.00034268,30]
[392012446,1761095450408,3000.0,0.00034268,30]
[392012447,1761095452180,3000.0,0.00034268,30]
[392012448,1761095454004,3000.0,0.00034268,30]
[392012449,1761095467521,3380.24,0.00034268,30]
[392012472,1761096087819,-189.0,0.00014898,2]
[392012473,1761096087842,-144.46184701,0.00014898,2]
[392012474,1761096088465,1091.0,0.00034262,30]
[392012475,1761096090533,-166.69219998,0.00014898,2]
[392012476,1761096090889,1091.0,0.00034262,30]
[392012477,1761096094205,-279.14135087,0.00014898,2]
[392012482,1761096357188,-289.42077271,0.00014898,2]
[392012498,1761096492195,-182.40920469,0.0001439,2]
[392012500,1761096493441,310.32811063,0.000135,2]
[392012501,1761096493982,-252.91331211,0.0001439,2]
[392012503,1761096495626,-281.68956733,0.0001439,2]
[392012505,1761096498393,-234.61837252,0.0001439,2]
[392012506,1761096500622,-255.92385,0.0001439,2]
[392012507,1761096504192,-301.22351527,0.0001439,2]
[392012509,1761096505655,-314.08928869,0.0001439,2]
[392012533,1761096522109,-228.58407504,0.0001439,2]
[392012536,1761096525454,-182.64764442,0.0001439,2]
[392012538,1761096528801,-214.02627852,0.0001439,2]
[392012540,1761096531981,-199.83052958,0.0001439,2]
[392012542,1761096533519,-340.48652607,0.0001439,2]
[392012545,1761096536746,-303.39546006,0.00014318,2]
[392012546,1761096540548,-31.07257594,0.00014318,2]
[392012547,1761096540569,-191.57806558,0.0001439,2]
[392012548,1761096542761,-245.72879105,0.0001439,2]
[392012574,1761096611734,151.50330586,0.00034262,120]
[392012585,1761096627597,-195.0,0.0001439,2]
[392012593,1761096632290,-62.39535842,0.0001439,2]
[392012594,1761096632299,-300.0,0.00014898,2]
[392012595,1761096632309,-1164.32,0.00014899,2]
[392012596,1761096632319,-200.0,0.00014899,2]
[392012597,1761096632331,-666.0,0.00014899,3]
[392012598,1761096632340,-799.0,0.00014899,2]
[392012599,1761096632350,-2910.9124026,0.000149,2]
[392012600,1761096632359,-300.0,0.00014972,2]
[392012602,1761096632368,-300.0,0.00014972,2]
[392012603,1761096632564,-500.0,0.00014973,2]
[392012604,1761096632578,-502.65116165,0.00014973,2]
[392012605,1761096632587,-502.41221837,0.00014973,2]
[392012606,1761096632597,-195.72260593,0.00014973,2]
[392012607,1761096632607,-202.95086633,0.00014999,2]
[392012609,1761096632619,-322.52483071,0.00014999,2]
[392012611,1761096632628,-500.0,0.00014999,2]
[392012613,1761096632637,-518.25380091,0.00014999,2]
[392012615,1761096632648,-177.50804635,0.00014999,2]
[392012617,1761096632657,-303.00010373,0.00014999,2]
[392012619,1761096632666,-169.80548999,0.00014999,2]
[392012620,1761096632675,-475.21504053,0.00014999,2]
[392012621,1761096632684,-150.0,0.00014999,2]
[392012622,1761096632693,-154.34927827,0.00014999,2]
[392012623,1761096632703,-119622.28191658,0.00015,2]
[392012624,1761096632733,-3651.27034911,0.00015,2]
[392012627,1761096638129,-2737.53953495,0.00015,2]
[392012628,1761096638140,-720.245,0.00015,2]
[392012629,1761096638242,-510.45374052,0.00015,2]
[392012630,1761096638253,-702.30454301,0.00015,2]
[392012631,1761096638368,-12255.78880594,0.00015,2]
[392012643,1761096640191,-427.68858442,0.00015,2]
[392012644,1761096640202,-1575.00019735,0.00015,2]
[392012645,1761096640214,-4409.58994048,0.00015,2]
[392012646,1761096640224,-853.86922575,0.00015,2]
[392012647,1761096640375,-34786.2664197,0.00015,2]
[392012648,1761096640386,-1158.89227683,0.00015,2]
[392012649,1761096640398,-357.28615974,0.00015,2]
[392012650,1761096640409,-22412.71818003,0.00015,2]
[392012651,1761096640431,-46660.0315574,0.00015,2]
[392012668,1761096643305,-31718.82111476,0.00015,2]
[392012669,1761096643586,-943.0,0.00015,2]
[392012672,1761096643598,-582.37999,0.00015,2]
[392012677,1761096646177,-444.58999998,0.00015,2]
[392012678,1761096646496,-1524.44481972,0.00015,2]
[392012680,1761096646626,-1088.30115775,0.00015,2]
[392012685,1761096660907,200.0,0.00034262,120]
[392012686,1761096672647,-213.33896432,0.00014998,2]
[392012687,1761096699263,315.37,0.00013699,2]
[392012692,1761096725215,166.35783996,0.00034262,30]